fUST/lending_fUST_20240415
["ID","MTS","AMOUNT","RATE_DAILY","PERIOD"]
[322654416,1713183038715,-10000.0,0.000365,20]
[322654418,1713183038724,-1000.0,0.000368,3]
[322654419,1713183038733,-1000.0,0.000368,3]
[322654421,1713183038743,-651.57439407,0.00036916,30]
[322654423,1713183038752,-500.0,0.00036986,2]
[322654425,1713183038764,-500.0,0.00036986,2]
[322654426,1713183038773,-233.91789515,0.00036986,2]
[322654428,1713183038783,-500.0,0.00036986,2]
[322654430,1713183038791,-500.0,0.00036986,2]
[322654432,1713183038800,-500.0,0.00036986,2]
[322654433,1713183038810,-500.0,0.00036986,2]
[322654435,1713183038819,-500.0,0.00036986,2]
[322654437,1713183038830,-500.0,0.00036986,2]
[322654439,1713183038838,-500.0,0.00036986,2]
[322654440,1713183038847,-500.0,0.00036986,2]
[322654442,1713183038857,-1440.0,0.00037,120]
[322654444,1713183038867,-2046.20344708,0.00037,2]
[322654445,1713183038875,-1099.6613126,0.0003707,31]
[322654447,1713183038884,-153.0,0.0003726,2]
[322654449,1713183038893,-153.0,0.0003726,2]
[322654451,1713183038903,-352.68039956,0.0003741,2]
[322654453,1713183038912,-3000.0,0.000375,4]
[322654454,1713183038920,-10000.0,0.000375,25]
[322654456,1713183038930,-3000.0,0.000375,14]
[322654458,1713183038939,-4444.69,0.00037509,7]
[322654459,1713183038947,-3000.0,0.0003751,14]
[322654461,1713183038956,-2413.17378169,0.00037518,2]
[322654463,1713183038965,-3000.0,0.0003752,14]
[322654465,1713183038974,-3000.0,0.0003753,14]
[322654467,1713183038982,-153.0,0.00037534,2]
[322654468,1713183038991,-3000.0,0.0003754,14]
[322654470,1713183039000,-3000.0,0.0003755,14]
[322654472,1713183039011,-3000.0,0.0003756,14]
[322654474,1713183039020,-3000.0,0.0003757,14]
[322654475,1713183039029,-3000.0,0.0003758,14]
[322654477,1713183039039,-500.0,0.00037588,15]
[322654479,1713183039048,-445.97467117,0.00037588,15]
[322654481,1713183039056,-500.0,0.00037588,15]
[322654482,1713183039065,-432.1907132,0.00037588,15]
[322654484,1713183039074,-484.10145462,0.00037588,15]
[322654486,1713183039083,-500.0,0.00037588,15]
[322654488,1713183039092,-500.0,0.00037588,15]
[322654489,1713183039101,-500.0,0.00037588,15]
[322654491,1713183039110,-603.19636075,0.00037588,15]
[322654493,1713183039119,-500.0,0.00037588,15]
[322654495,1713183039129,-500.0,0.00037588,15]
[322654496,1713183039138,-500.0,0.00037588,15]
[322654497,1713183039147,-500.0,0.00037588,15]
[322654498,1713183039155,-500.0,0.00037588,15]
[322654499,1713183039164,-500.0,0.00037588,15]
[322654500,1713183039173,-500.0,0.00037588,15]
[322654501,1713183039182,-500.0,0.00037588,15]
[322654502,1713183039191,-581.19120691,0.00037588,15]
[322654503,1713183039200,-500.0,0.00037588,15]
[322654504,1713183039208,-500.0,0.00037588,15]
[322654505,1713183039217,-500.0,0.00037588,15]
[322654506,1713183039226,-384.87765707,0.00037588,15]
[322654507,1713183039235,-500.0,0.00037588,15]
[322654508,1713183039244,-500.0,0.00037588,15]
[322654509,1713183039253,-3000.0,0.0003759,14]
[322654510,1713183039264,-3000.0,0.000376,14]
[322654511,1713183039273,-3000.0,0.0003761,14]
[322654513,1713183039282,-4444.69,0.00037617,7]
[322654514,1713183039291,-9944.7844545,0.00037618,4]
[322654515,1713183039300,-157.63466425,0.0003762,2]
[322654516,1713183039309,-3000.0,0.0003762,14]
[322654518,1713183039318,-3000.0,0.0003763,14]
[322654519,1713183039327,-3000.0,0.0003764,14]
[322654521,1713183039336,-3000.0,0.0003765,15]
[322654522,1713183039346,-781.03589694,0.0003766,15]
[322654523,1713183040278,-1623.8,0.0003766,15]
[322654525,1713183040306,-595.16410306,0.0003766,15]
[322654526,1713183040317,-3000.0,0.0003767,15]
[322654527,1713183040328,-3000.0,0.0003768,15]
[322654528,1713183040338,-3535.41492387,0.00037689,7]
[322654529,1713183040351,-909.27507613,0.00037689,7]
[322654530,1713183040360,-4444.69,0.00037689,7]
[322654531,1713183040370,-3000.0,0.0003769,15]
[322654532,1713183040379,-1745.7419171,0.000377,15]
[322654533,1713183040390,-431.34811614,0.000377,15]
[322654534,1713183041748,-822.90996676,0.000377,15]
[322654535,1713183041758,-692.43183461,0.0003771,15]
[322654536,1713183041896,199.48673495,0.0002,2]
[322654562,1713183080521,154.82968734,0.0002,2]
[322654563,1713183082430,509.66254876,0.000252,14]
[322654564,1713183092568,238.03407705,0.0002,2]
[322654600,1713184167648,10000.0,0.00025,10]
[322654602,1713184191597,10000.0,0.000201,2]
[322654643,1713184237984,-158.76974363,0.0002202,2]
[322654645,1713184237995,-2261.6851352,0.00022021,2]
[322654761,1713184243230,-510.64313456,0.00022021,2]
[322654825,1713184246162,-1143.32086267,0.00022021,2]
[322654826,1713184246172,-220.27541879,0.00022123,2]
[322654827,1713184246181,-650.74099948,0.000231,2]
[322654828,1713184246191,-156.98200501,0.00025,2]
[322654829,1713184246200,-330.621205,0.00027397,2]
[322654830,1713184246212,-158.833176,0.00027397,2]
[322654831,1713184246224,-650.74099948,0.000281,2]
[322654832,1713184246233,-163.585749,0.00029993,2]
[322654833,1713184246242,-989.08909119,0.0003,4]
[322654834,1713184246251,-166.666666,0.0003031,2]
[322654835,1713184246260,-1434.9556405,0.00030564,2]
[322654836,1713184246270,-400.0,0.00030831,2]
[322654837,1713184246279,-400.0,0.00030833,2]
[322654838,1713184246289,-204.0,0.00030834,2]
[322654839,1713184246298,-24900.0,0.00030834,2]
[322654840,1713184246308,-333.43363465,0.00031036,5]
[322654841,1713184246318,-166.666666,0.00031137,2]
[322654842,1713184246328,-166.666666,0.00031963,2]
[322654843,1713184246337,-333.43363462,0.0003238,6]
[322654844,1713184246347,-168.660523,0.0003267,2]
[322654845,1713184246356,-166.666666,0.00032789,2]
[322654846,1713184246365,-650.74099948,0.000331,2]
[322654847,1713184246374,-330.621205,0.00033165,2]
[322654848,1713184246384,-166.666666,0.00033616,2]
[322654849,1713184246393,-333.43363462,0.00033725,6]
[322654850,1713184246404,-560.0,0.00033914,2]
[322654851,1713184246413,-3000.0,0.00034,2]
[322654852,1713184246422,-465.39337493,0.00034246,4]
[322654853,1713184246431,-158.833176,0.00034247,2]
[322654854,1713184246440,-166.666666,0.00034442,2]
[322654855,1713184246450,-204.0,0.000345,2]
[322654856,1713184246462,-10000.0,0.000345,10]
[322654857,1713184246471,-3518.71,0.00034897,7]
[322654858,1713184246481,-6869.95989293,0.00035,4]
[322654859,1713184246490,-20000.0,0.00035,30]
[322654860,1713184246500,-596.97026302,0.00035,2]
[322654861,1713184246510,-333.43363462,0.00035069,7]
[322654862,1713184246519,-150.83408251,0.0003526,2]
[322654863,1713184246529,-176.34019978,0.000353,2]
[322654864,1713184246539,-786.88,0.000354,2]
[322654865,1713184246548,-10000.0,0.000355,15]
[322654866,1713184246557,-400.75551141,0.00035616,2]
[322654867,1713184246567,-3376.334526,0.00035616,120]
[322654868,1713184246577,-301.66816502,0.00035853,4]
[322654869,1713184246586,-10000.0,0.00036,30]
[322654870,1713184246595,-3000.0,0.00036,2]
[322654871,1713184246604,-288.98977443,0.00036003,4]
[322654872,1713184246613,-176.34019978,0.00036152,2]
[322654873,1713184246622,-333.43363462,0.00036414,7]
[322654874,1713184246631,-603.33633004,0.00036455,7]
[322654875,1713184246640,-2000.0,0.000369,2]
[322654876,1713184246650,-500.0,0.00037,2]
[322654877,1713184246659,-13886.0107805,0.00037,30]
[322654878,1713184254959,1667.90785893,0.000201,2]
[322654908,1713185250181,-158.76974363,0.00027171,2]
[322654909,1713185250201,-88.87975703,0.00027172,2]
[322654939,1713185432263,-163.91782719,0.00025071,2]
[322654940,1713185432273,-150.0,0.00025072,2]
[322654941,1713185432282,-156.98200501,0.0002717,2]
[322654942,1713185432291,-585.51793603,0.00027188,2]
[322654943,1713185432301,-249.32048816,0.00027295,2]
[322654944,1713185432310,-164.328306,0.00027397,2]
[322654945,1713185432319,-150.0,0.00030072,2]
[322654946,1713185432328,-2000.0,0.000318,6]
[322654947,1713185432337,-166.666666,0.00031909,2]
[322654948,1713185432347,-170.088932,0.00032152,2]
[322654949,1713185432356,-24900.0,0.00032229,2]
[322654950,1713185432367,-168.660523,0.00032299,2]
[322654951,1713185432376,-400.0,0.00032385,2]
[322654952,1713185432386,-320.0,0.00032385,2]
[322654953,1713185432395,-204.0,0.00032386,2]
[322654954,1713185432405,-276.22944596,0.00032395,6]
[322654955,1713185432415,-166.666666,0.00032779,2]
[322654956,1713185432424,-154.0,0.00033,2]
[322654957,1713185432434,-150.8642222,0.00033289,30]
[322654958,1713185432443,-276.22944593,0.00033545,6]
[322654959,1713185432453,-166.666666,0.00033648,2]
[322654960,1713185432463,-150.8642222,0.00033968,7]
[322654962,1713185432472,-465.39337493,0.00034,4]
[322654964,1713185432482,-187.082943,0.00034359,2]
[322654966,1713185432491,-166.666666,0.00034518,2]
[322654968,1713185432501,-154.0,0.00034521,2]
[322654970,1713185432510,-257.16657089,0.00034574,2]
[322655024,1713185438339,-1534.7673257,0.000318,9]
[322655062,1713185440288,-288.19333919,0.000318,9]
[322655063,1713185440328,-177.03933511,0.000318,9]
[322655064,1713185440339,-363.69769857,0.00034574,2]
[322655065,1713185440349,-150.8642222,0.00034661,4]
[322655066,1713185440359,-276.22944593,0.00034696,7]
[322655067,1713185440372,-3392.93,0.00034999,7]
[322655068,1713185440382,-596.97026302,0.00035368,2]
[322655069,1713185440392,-150.8642222,0.00035369,2]
[322655070,1713185440402,-166.666666,0.00035388,2]
[322655071,1713185440412,-6869.95989293,0.00035529,4]
[322655072,1713185440422,-9394.86542554,0.0003553,4]
[322655073,1713185440433,-999.000999,0.00035615,2]
[322655074,1713185440443,-3482.938602,0.00035616,120]
[322655075,1713185440453,-560.0,0.00035624,2]
[322655076,1713185440462,-276.22944593,0.00035846,7]
[322655077,1713185440472,-4104.79315317,0.00036,2]
[322655078,1713185440481,-8786.08213868,0.00036,2]
[322655079,1713185440494,-456.33,0.00036,2]
[322655095,1713185443305,-8833.78938193,0.00036,2]
[322655140,1713186632914,-243.11397292,0.00027151,2]
[322655141,1713186632923,-467.3340477,0.00027152,2]
[322655193,1713186638392,-420.72483127,0.00027152,2]
[322655194,1713186638402,-282.75395615,0.00027153,2]
[322655195,1713186638411,-161.77699218,0.00027154,2]
[322655196,1713186638421,-7855.0254148,0.00027154,2]
[322655197,1713186638429,-300.0,0.00027155,2]
[322655198,1713186638439,-164.36504559,0.00027162,2]
[322655199,1713186638448,-180.410004,0.00027397,2]
[322655200,1713186638456,-166.76411,0.00027397,2]
[322655201,1713186638465,-166.666666,0.00027397,2]
[322655202,1713186638475,-297.559084,0.00027397,2]
[322655203,1713186638484,-24900.0,0.00028017,2]
[322655204,1713186638493,-166.666666,0.00028097,2]
[322655205,1713186638502,-633.137888,0.00028246,2]
[322655206,1713186638512,-188.80541556,0.00028423,2]
[322655207,1713186638521,-166.666666,0.00028798,2]
[322655208,1713186638531,-166.666666,0.00029498,2]
[322655209,1713186638541,-420.0,0.00029871,2]
[322655210,1713186638549,-166.666666,0.00030198,2]
[322655211,1713186638559,-163.585749,0.00030383,2]
[322655212,1713186638568,-166.666666,0.00030898,2]
[322655213,1713186638577,-164.36504557,0.00031531,2]
[322655214,1713186638586,-191.09643603,0.00032,4]
[322655215,1713186638596,-710.44801962,0.00032419,4]
[322655216,1713186638606,-587.0,0.00032858,2]
[322655217,1713186638615,-154.86062544,0.00032864,4]
[322655218,1713186638625,-951.67505643,0.00032999,2]
[322655219,1713186638636,-2000.0,0.00033,15]
[322655220,1713186638645,-2000.0,0.00033,16]
[322655221,1713186638654,-166.76411,0.00033165,2]
[322655222,1713186638662,-297.559084,0.00033165,2]
[322655223,1713186638673,-150.0,0.000339,2]
[322655224,1713186638682,-465.39337493,0.00034,4]
[322655225,1713186638691,-2000.0,0.000348,18]
[322655226,1713186638701,-1008.2,0.000348,20]
[322655227,1713186638710,-26672.32066589,0.00035,7]
[322655228,1713186638720,-501.56010256,0.00035,120]
[322655229,1713186638729,-596.97026302,0.00035399,2]
[322655230,1713186638739,-327.66696141,0.00035529,4]
[322655232,1713186638748,-9394.86542554,0.0003553,4]
[322655233,1713186638758,-1000.0,0.000356,21]
[322655234,1713186638767,-2612.203951,0.00035616,120]
[322655235,1713186638779,-160.7395652,0.00035667,2]
[322655236,1713186638790,-153.0,0.00035667,2]
[322655237,1713186638799,-153.0,0.00035667,2]
[322655238,1713186638809,-153.0,0.00035667,2]
[322655239,1713186638818,-153.0,0.00035736,2]
[322655240,1713186638827,-614.87468551,0.00035898,2]
[322655241,1713186638836,-164.36504557,0.000359,2]
[322655242,1713186638845,-3251.56,0.00035997,7]
[322655243,1713186638855,-154.86062544,0.00035998,4]
[322655244,1713186638865,-9933.29817149,0.00035998,30]
[322655245,1713186638874,-601.81614276,0.00035998,4]
[322655246,1713186638883,-299.82752621,0.00035998,4]
[322655247,1713186638893,-278.21810736,0.00035998,4]
[322655248,1713186638903,-274.24746323,0.00035998,4]
[322655249,1713186638913,-723.98943527,0.00035998,4]
[322655250,1713186638922,-606.81347954,0.00035998,2]
[322655251,1713186638931,-2853.49560943,0.00035998,4]
[322655252,1713186638939,-1102.91372519,0.00035998,4]
[322655253,1713186638949,-1462.48790883,0.00035998,4]
[322655254,1713186638958,-187.90606758,0.00035998,15]
[322655255,1713186638969,-467.85668109,0.00035998,15]
[322655256,1713186638978,-151.97,0.00035999,2]
[322655257,1713186638987,-151.97,0.00035999,2]
[322655258,1713186638998,-151.97,0.00035999,2]
[322655259,1713186639007,-151.97,0.00035999,2]
[322655260,1713186639016,-151.97,0.00035999,2]
[322655261,1713186639027,-151.97,0.00035999,2]
[322655262,1713186639039,-151.97,0.00035999,2]
[322655263,1713186639048,-151.97,0.00035999,2]
[322655264,1713186639057,-151.97,0.00035999,2]
[322655265,1713186639066,-3251.56,0.00035999,7]
[322655266,1713186639075,-3251.56,0.00035999,7]
[322655267,1713186639084,-113341.19298479,0.00036,2]
[322655269,1713186640335,-134.78952212,0.00036,2]
[322655271,1713186640346,-314.23842268,0.00036,2]
[322655307,1713186665336,199.48673495,0.0002,3]
[322655309,1713186705290,154.86062544,0.0002,2]
[322655310,1713186719265,238.03407705,0.0002,2]
[322655312,1713187066634,391.2085785,0.00020076,2]
[322655313,1713187086566,358.14728784,0.00020075,2]
[322655314,1713187187653,1649.06494182,0.00020061,2]
[322655315,1713187194183,576.440769,0.00019156,2]
[322655317,1713187222039,238.76485856,0.00020055,2]
[322655318,1713187261350,342.30750617,0.00020044,2]
[322655319,1713187292960,250.0,0.00019139,2]
[322655328,1713187358477,159.17657238,0.00020028,2]
[322655333,1713187445782,156.24149616,0.00020013,2]
[322655334,1713187452591,321.52657124,0.00020013,2]
[322655368,1713187511162,24900.0,0.00019107,2]
[322655370,1713187515143,361.42917162,0.000201,2]
[322655371,1713187516057,525.49067281,0.000201,2]
[322655372,1713187516378,161.77699218,0.000201,2]
[322655373,1713187517668,225.96730159,0.000201,2]
[322655374,1713187517707,2122.16798376,0.000201,2]
[322655383,1713187589901,1319.25195348,0.00019995,2]
[322655384,1713187594487,428.38711029,0.000189,2]
[322655390,1713187642999,281.3357498,0.00019984,2]
[322655391,1713187690446,288.220384,0.00019078,2]
[322655405,1713187832821,-465.54275038,0.00020051,2]
[322655406,1713187832831,-278.02539364,0.00020052,2]
[322655410,1713187832881,-675.71254059,0.00020052,2]
[322655412,1713187832890,-163.91782719,0.00020052,2]
[322655413,1713187832901,-156.77861177,0.00020052,2]
[322655414,1713187832912,-473.94455587,0.00020052,2]
[322655415,1713187832922,-207.55380091,0.00020052,2]
[322655417,1713187832931,-467.57706084,0.00020052,2]
[322655419,1713187832940,-277.45481034,0.00020052,2]
[322655421,1713187832962,-282.75395615,0.00020053,2]
[322655423,1713187832973,-361.42917162,0.00020053,2]
[322655425,1713187832984,-906.9235514,0.00020053,2]
[322655427,1713187832994,-2124.60141988,0.00020053,2]
[322655428,1713187833005,-5791.45874465,0.00020053,2]
[322655429,1713187833015,-157.4992408,0.00020053,2]
[322655431,1713187833027,-154.92253873,0.00020053,2]
[322655432,1713187833037,-59063.66666477,0.00020053,2]
[322655433,1713187833047,-2940.2321375,0.00020053,2]
[322655434,1713187833057,-2583.74745148,0.00020054,2]
[322655435,1713187833068,-2096.03028856,0.00020054,2]
[322655437,1713187833077,-622.68427412,0.00020054,2]
[322655439,1713187833087,-154.92253873,0.00020054,2]
[322655441,1713187833097,-8000.0,0.00020054,2]
[322655443,1713187833107,-193.29068397,0.00020054,2]
[322655444,1713187833118,-1487.92182193,0.00020054,2]
[322655445,1713187833128,-937.42642571,0.00020054,2]
[322655446,1713187833139,-185.88478385,0.00020054,2]
[322655447,1713187833149,-622.68427412,0.00020054,2]
[322655448,1713187833160,-882.33479028,0.00020054,2]
[322655449,1713187833171,-43.08476794,0.00020054,2]
[322655499,1713187838651,-161.77699218,0.00020051,2]
[322655501,1713187838661,-408.25460692,0.00020051,2]
[322655503,1713187838670,-525.49067281,0.00020051,2]
[322655505,1713187838680,-1574.32701702,0.00020053,2]
[322655506,1713187838690,-173.00838129,0.00020054,2]
[322655507,1713187838699,-1933.58973003,0.00020054,2]
[322655508,1713187838709,-519.0311523,0.00020054,2]
[322655509,1713187838719,-563.61476546,0.00020054,2]
[322655510,1713187838728,-500.0,0.00020054,2]
[322655511,1713187838738,-500.0,0.00020054,2]
[322655513,1713187838748,-500.0,0.00020054,2]
[322655515,1713187838758,-500.0,0.00020054,2]
[322655516,1713187838769,-500.0,0.00020054,2]
[322655518,1713187838779,-500.0,0.00020054,2]
[322655520,1713187838791,-500.0,0.00020054,2]
[322655522,1713187838801,-500.0,0.00020054,2]
[322655524,1713187838811,-500.0,0.00020054,2]
[322655526,1713187838822,-277.41343865,0.00020054,2]
[322655527,1713187838831,-608.30003411,0.00020054,2]
[322655528,1713187838842,-3740.74588478,0.00020055,2]
[322655529,1713187838851,-888.05887897,0.00020055,2]
[322655530,1713187838861,-22777.83227765,0.00020055,2]
[322655531,1713187838871,-688.1990758,0.00020055,2]
[322655532,1713187838882,-203.83136061,0.00020055,2]
[322655533,1713187838892,-1309.46372676,0.00020055,2]
[322655534,1713187838901,-154.92253873,0.00020055,2]
[322655535,1713187838912,-9558.22389449,0.00020055,2]
[322655536,1713187838921,-926.17888641,0.00020056,2]
[322655537,1713187838931,-236.30551311,0.00020056,2]
[322655538,1713187838941,-211.7214804,0.00020056,2]
[322655539,1713187838952,-154.92253873,0.00020056,2]
[322655540,1713187838961,-622.68427412,0.00020056,2]
[322655541,1713187838971,-1000.0,0.00020056,2]
[322655542,1713187838981,-300.0,0.00020056,2]
[322655543,1713187838991,-331.97035701,0.00020056,2]
[322655544,1713187839001,-300.0,0.00020056,2]
[322655545,1713187839011,-602.31021043,0.00020056,2]
[322655546,1713187839166,-154.92253873,0.00020057,2]
[322655547,1713187839178,-154.92253873,0.00020057,2]
[322655548,1713187839188,-304.24078065,0.00020057,2]
[322655549,1713187839199,-241.07910305,0.00020057,2]
[322655550,1713187839209,-7855.0254148,0.00020057,2]
[322655551,1713187839218,-538.98088948,0.00020057,2]
[322655552,1713187839228,-154.92253873,0.00020057,2]
[322655553,1713187839238,-1856.05984643,0.00020057,2]
[322655554,1713187839248,-154.92253873,0.00020058,2]
[322655555,1713187839260,-2619.93201651,0.00020058,2]
[322655556,1713187839270,-154.92253873,0.00020058,2]
[322655557,1713187839280,-326.84815688,0.00020058,2]
[322655558,1713187839298,-154.92253873,0.00020058,2]
[322655559,1713187839309,-188.8842107,0.00020059,2]
[322655560,1713187839319,-225.96730159,0.0002006,2]
[322655561,1713187839330,-4199.23386836,0.0002006,2]
[322655562,1713187839343,-151.0,0.00020101,2]
[322655563,1713187839352,-172.976292,0.00020101,2]
[322655564,1713187839362,-1398.974143,0.00020101,2]
[322655565,1713187839372,-1398.974143,0.00020101,2]
[322655566,1713187839384,-696.387476,0.00020101,2]
[322655567,1713187839394,-696.387476,0.00020101,2]
[322655568,1713187839404,-879.92761,0.00020122,2]
[322655569,1713187839414,-879.92761,0.00020122,2]
[322655570,1713187839423,-151.0,0.00020122,2]
[322655571,1713187839433,-151.0,0.00020122,2]
[322655572,1713187839443,-151.0,0.00020122,2]
[322655573,1713187839454,-1398.974143,0.00020122,2]
[322655574,1713187839464,-1398.974143,0.00020122,2]
[322655575,1713187839475,-696.387476,0.00020122,2]
[322655576,1713187839485,-696.387476,0.00020122,2]
[322655577,1713187839496,-151.0,0.0002015,2]
[322655578,1713187839507,-151.0,0.0002015,2]
[322655579,1713187839516,-171.802594,0.00020179,2]
[322655580,1713187839528,-739.1045113,0.00020454,2]
[322655581,1713187839547,-5575.62419768,0.00021,2]
[322655582,1713187839556,-156.24149615,0.00021406,2]
[322655583,1713187839565,-153.146144,0.00021452,2]
[322655584,1713187839575,-420.0,0.00021838,2]
[322655585,1713187839584,-151.0,0.00021937,2]
[322655586,1713187839593,-158.76974363,0.00022,2]
[322655587,1713187839604,-420.0,0.00022062,2]
[322655588,1713187839613,-879.92761,0.00022123,2]
[322655589,1713187839623,-879.92761,0.00022123,2]
[322655590,1713187839634,-151.0,0.00022123,2]
[322655591,1713187839643,-290.965747,0.00022123,2]
[322655592,1713187839653,-156.24149615,0.00022799,2]
[322655593,1713187839663,-587.0,0.00023777,2]
[322655594,1713187839672,-151.0,0.00023787,2]
[322655595,1713187839682,-151.0,0.00023787,2]
[322655596,1713187839692,-151.0,0.00023787,2]
[322655597,1713187839701,-151.0,0.00023787,2]
[322655598,1713187839711,-255.348543,0.00023787,2]
[322655599,1713187839721,-255.348543,0.00023787,2]
[322655600,1713187839730,-428.38711029,0.000239,2]
[322655601,1713187839740,-1319.25195344,0.00023971,2]
[322655602,1713187839750,-156.24149615,0.00024192,2]
[322655603,1713187839760,-587.0,0.00024268,2]
[322655604,1713187839769,-272.816358,0.00024292,2]
[322655605,1713187839779,-151.0,0.00024292,2]
[322655606,1713187839795,-879.92761,0.00024292,2]
[322655607,1713187839805,-879.92761,0.00024292,2]
[322655608,1713187839815,-151.0,0.00024292,2]
[322655609,1713187839826,-151.0,0.00024292,2]
[322655610,1713187839836,-1398.974143,0.00024292,2]
[322655611,1713187839846,-1398.974143,0.00024292,2]
[322655612,1713187839856,-696.387476,0.00024292,2]
[322655613,1713187839866,-696.387476,0.00024292,2]
[322655614,1713187839876,-151.0,0.00024292,2]
[322655615,1713187839885,-151.0,0.00024292,2]
[322655616,1713187839895,-1547.84849609,0.00025686,2]
[322655617,1713187839905,-309.55121334,0.00025686,2]
[322655618,1713187839916,-309.6903097,0.00025686,2]
[322655619,1713187839926,-823.0,0.00025889,2]
[322655620,1713187839935,-823.0,0.00026695,2]
[322655621,1713187839946,-156.00464948,0.00027147,2]
[322655622,1713187839956,-158.41909897,0.00027147,2]
[322655623,1713187839967,-155.80933355,0.00027147,2]
[322655624,1713187839976,-157.05093756,0.00027147,2]
[322655625,1713187839987,-155.25159508,0.00027147,2]
[322655626,1713187839997,-470.72269089,0.00027147,2]
[322655627,1713187840007,-181.3262876,0.00027147,2]
[322655628,1713187840016,-309.53574583,0.00027147,2]
[322655629,1713187840026,-3295.50625609,0.00027147,2]
[322655630,1713187840042,-2457.16776031,0.00027147,2]
[322655631,1713187840051,-151.0,0.00027147,2]
[322655633,1713187840061,-879.92761,0.00027147,2]
[322655634,1713187840071,-879.92761,0.00027147,2]
[322655635,1713187840080,-151.0,0.00027147,2]
[322655636,1713187840090,-1398.974143,0.00027147,2]
[322655637,1713187840100,-1398.974143,0.00027147,2]
[322655638,1713187840109,-696.387476,0.00027147,2]
[322655639,1713187840118,-696.387476,0.00027147,2]
[322655640,1713187840128,-151.0,0.00027147,2]
[322655641,1713187840137,-151.0,0.00027147,2]
[322655642,1713187840147,-151.0,0.00027147,2]
[322655643,1713187840156,-151.0,0.00027147,2]
[322655644,1713187840166,-151.0,0.00027147,2]
[322655645,1713187840175,-151.0,0.00027147,2]
[322655646,1713187840184,-255.348543,0.00027147,2]
[322655647,1713187840194,-255.348543,0.00027147,2]
[322655648,1713187840203,-1199.99210518,0.00027152,2]
[322655649,1713187840213,-2565.56553566,0.00027152,2]
[322655650,1713187840222,-225.922353,0.00027397,2]
[322655651,1713187840232,-166.666666,0.00027397,2]
[322655652,1713187840243,-566.34831217,0.000274,2]
[322655653,1713187840252,-1319.25195344,0.00027948,2]
[322655654,1713187840262,-166.666666,0.00028038,2]
[322655655,1713187840272,-365.0,0.00028189,2]
[322655656,1713187840284,-288.220384,0.00028616,2]
[322655657,1713187840294,-166.666666,0.00028679,2]
[322655658,1713187840304,-428.38711029,0.000289,2]
[322655659,1713187840313,-166.666666,0.00029321,2]
[322655660,1713187840322,-1152.0,0.00029364,2]
[322655661,1713187840334,-166.666666,0.00029962,2]
[322655662,1713187840343,-166.666666,0.00030603,2]
[322655663,1713187840353,-311.80850413,0.00030891,2]
[322655664,1713187840363,-1319.25195344,0.00031924,2]
[322655665,1713187840374,-1613.0,0.000323,2]
[322655666,1713187840384,-151.0,0.00032315,2]
[322655667,1713187840393,-151.0,0.00032315,2]
[322655668,1713187840403,-151.0,0.00032315,2]
[322655669,1713187840414,-151.0,0.00032315,2]
[322655671,1713187840426,-255.348543,0.00032315,2]
[322655672,1713187840436,-151.0,0.00032877,2]
[322655674,1713187840447,-151.0,0.00032877,2]
[322655675,1713187840459,-151.0,0.00032877,2]
[322655676,1713187840470,-151.0,0.00032877,2]
[322655677,1713187840482,-225.922353,0.00033165,2]
[322655678,1713187840496,-55848.75546272,0.000333,2]
[322655689,1713187840767,-783.63141595,0.0002005,2]
[322655690,1713187840777,-1088.76018233,0.00020053,2]
[322655691,1713187840790,-500.0,0.00020054,2]
[322655692,1713187840800,-500.0,0.00020054,2]
[322655693,1713187840810,-255.348543,0.00032315,2]
[322655694,1713187840820,-7010.11507848,0.000333,2]
[322655695,1713187840830,-151.0,0.000333,2]
[322655696,1713187840839,-151.0,0.000333,2]